Workbook

Sheet Import data
B1: HMEA Collator
B2: =" Version: v" & Settings!B1 -> Version: v1.02
B3: File paths for HMEA analyses
B9: File path
A10: 1 | B10: C:\Data\projects\Wales Benefits of maintenance\Wales analyses\Example\Collator files\HMEA - Backlog 6 sect Traff.xlsm
A11: 2 | B11: C:\Data\projects\Wales Benefits of maintenance\Wales analyses\Example\Collator files\HMEA - Current Budget 6 sect Traff.xlsm
A12: 3
A13: 4
A14: 5
B20: Liability
B21: No Liability for loss or damage that may be suffered by any person or organisation as a result of the use of this model, or as the result of any errors or omissions in the information contained herein, is accepted by the developers of the toolkit.
B25: Version history
B27: Version | C27: Date | D27: Description
B28: 1.00 | C28: 2019-11-08 | D28: Version for client review
B29: 1.01 | C29: 2019-12-06 | D29: Added help button and carbon total onto summary sheet, improved colour coding on summary sheet to guide use.
B30: 1.02 | C30: 2020-05-12 | D30: Changes to headings on summary sheet

Sheet Summary
B1: Display results? | D1: =IF(AND(SelectedCase<>1,D11<>"",SelectedHasData),TRUE,FALSE) -> TRUE | E1: =IF(AND(SelectedCase<>2,E11<>"",SelectedHasData),TRUE,FALSE) -> FALSE | F1: =IF(AND(SelectedCase<>3,F11<>"",SelectedHasData),TRUE,FALSE) -> FALSE | G1: =IF(AND(SelectedCase<>4,G11<>"",SelectedHasData),TRUE,FALSE) -> FALSE | H1: =IF(AND(SelectedCase<>5,H11<>"",SelectedHasData),TRUE,FALSE) -> FALSE
B2: HMEA Collator
B3: ="Version: v" & Settings!B1 -> Version: v1.02
B6: Analysis Name | D6: No Backlog - 6 sectors, 30 years, with traffic effect | E6: Current Budget - 6 sectors, 30 years, with traffic effect
B7: Base Case Selector
B9: Undiscounted costs
B11: Direct Cost: Maintenance | C11: £k | D11: 540624.7793 | E11: 166971.6
B13: HMAT Indirect Costs | C13: £k | D13: 169250126.5 | E13: 155870546.7
B14: Total Carbon costs | C14: £k | D14: 4877540.15 | E14: 4038318.964
B16: Network benefits | C16: £k | D16: 15180401.57 | E16: 14163699.78
B17: Public Income | C17: £k | D17: 50965445.58 | E17: 2799910.836
B18: Economic Impacts | C18: £k | D18: 261742977.1 | E18: 251987201.3
B21: Overall Economic Contribution (EC) | D21: =IF(D$1,IFERROR((dis_A_Base-dis_A_1)/(dis_DirCost_1-dis_DirCost_Base),""),"") -> 121.9270572 | E21: =IF(E$1,IFERROR((dis_A_Base-dis_A_2)/(dis_DirCost_2-dis_DirCost_Base),""),"") ->  | F21: =IF(F$1,IFERROR((dis_A_Base-dis_A_3)/(dis_DirCost_3-dis_DirCost_Base),""),"") ->  | G21: =IF(G$1,IFERROR((dis_A_Base-dis_A_4)/(dis_DirCost_4-dis_DirCost_Base),""),"") ->  | H21: =IF(H$1,IFERROR((dis_A_Base-dis_A_5)/(dis_DirCost_5-dis_DirCost_Base),""),"") -> 
B23: EC: HMAT + HMEA (Economic) | D23: =IF(D$1,IFERROR((dis_B_Base-dis_B_1)/(dis_DirCost_1-dis_DirCost_Base),""),"") -> -9.698308933 | E23: =IF(E$1,IFERROR((dis_B_Base-dis_B_2)/(dis_DirCost_2-dis_DirCost_Base),""),"") ->  | F23: =IF(F$1,IFERROR((dis_B_Base-dis_B_3)/(dis_DirCost_3-dis_DirCost_Base),""),"") ->  | G23: =IF(G$1,IFERROR((dis_B_Base-dis_B_4)/(dis_DirCost_4-dis_DirCost_Base),""),"") ->  | H23: =IF(H$1,IFERROR((dis_B_Base-dis_B_5)/(dis_DirCost_5-dis_DirCost_Base),""),"") -> 
B24: EC: HMEA (Excluding Economic) | D24: =IF(D$1,IFERROR((dis_C_Base-dis_C_1)/(dis_DirCost_1-dis_DirCost_Base),""),"") -> 95.81788336 | E24: =IF(E$1,IFERROR((dis_C_Base-dis_C_2)/(dis_DirCost_2-dis_DirCost_Base),""),"") ->  | F24: =IF(F$1,IFERROR((dis_C_Base-dis_C_3)/(dis_DirCost_3-dis_DirCost_Base),""),"") ->  | G24: =IF(G$1,IFERROR((dis_C_Base-dis_C_4)/(dis_DirCost_4-dis_DirCost_Base),""),"") ->  | H24: =IF(H$1,IFERROR((dis_C_Base-dis_C_5)/(dis_DirCost_5-dis_DirCost_Base),""),"") -> 
B25: EC: HMEA (Excluding HMAT) | D25: =IF(D$1,IFERROR((dis_D_Base-dis_D_1)/(dis_DirCost_1-dis_DirCost_Base),""),"") -> 157.73454 | E25: =IF(E$1,IFERROR((dis_D_Base-dis_D_2)/(dis_DirCost_2-dis_DirCost_Base),""),"") ->  | F25: =IF(F$1,IFERROR((dis_D_Base-dis_D_3)/(dis_DirCost_3-dis_DirCost_Base),""),"") ->  | G25: =IF(G$1,IFERROR((dis_D_Base-dis_D_4)/(dis_DirCost_4-dis_DirCost_Base),""),"") ->  | H25: =IF(H$1,IFERROR((dis_D_Base-dis_D_5)/(dis_DirCost_5-dis_DirCost_Base),""),"") -> 
B26: EC: HMEA (Net Ben + Public Inc.) | D26: =IF(D$1,IFERROR((dis_E_Base-dis_E_1)/(dis_DirCost_1-dis_DirCost_Base),""),"") -> 131.6253661 | E26: =IF(E$1,IFERROR((dis_E_Base-dis_E_2)/(dis_DirCost_2-dis_DirCost_Base),""),"") ->  | F26: =IF(F$1,IFERROR((dis_E_Base-dis_E_3)/(dis_DirCost_3-dis_DirCost_Base),""),"") ->  | G26: =IF(G$1,IFERROR((dis_E_Base-dis_E_4)/(dis_DirCost_4-dis_DirCost_Base),""),"") ->  | H26: =IF(H$1,IFERROR((dis_E_Base-dis_E_5)/(dis_DirCost_5-dis_DirCost_Base),""),"") -> 
B28: EC: HMEA (Economic) | D28: =IF(D$1,IFERROR((dis_EcoImp_1-dis_EcoImp_Base)/(dis_DirCost_1-dis_DirCost_Base),""),"") -> 26.10917384 | E28: =IF(E$1,IFERROR((dis_EcoImp_2-dis_EcoImp_Base)/(dis_DirCost_2-dis_DirCost_Base),""),"") ->  | F28: =IF(F$1,IFERROR((dis_EcoImp_3-dis_EcoImp_Base)/(dis_DirCost_3-dis_DirCost_Base),""),"") ->  | G28: =IF(G$1,IFERROR((dis_EcoImp_4-dis_EcoImp_Base)/(dis_DirCost_4-dis_DirCost_Base),""),"") ->  | H28: =IF(H$1,IFERROR((dis_EcoImp_5-dis_EcoImp_Base)/(dis_DirCost_5-dis_DirCost_Base),""),"") -> 
B29: EC: HMAT | D29: =IF(D$1,IFERROR((dis_HMAT_BASE-dis_HMAT_1)/(dis_DirCost_1-dis_DirCost_Base),""),"") -> -35.80748278 | E29: =IF(E$1,IFERROR((dis_HMAT_BASE-dis_HMAT_2)/(dis_DirCost_2-dis_DirCost_Base),""),"") ->  | F29: =IF(F$1,IFERROR((dis_HMAT_BASE-dis_HMAT_3)/(dis_DirCost_3-dis_DirCost_Base),""),"") ->  | G29: =IF(G$1,IFERROR((dis_HMAT_BASE-dis_HMAT_4)/(dis_DirCost_4-dis_DirCost_Base),""),"") ->  | H29: =IF(H$1,IFERROR((dis_HMAT_BASE-dis_HMAT_5)/(dis_DirCost_5-dis_DirCost_Base),""),"") -> 
B30: EC: HMEA (Network Benefit) | D30: =IF(D$1,IFERROR((dis_NetBen_1-dis_NetBen_Base)/(dis_DirCost_1-dis_DirCost_Base),""),"") -> 2.720977234 | E30: =IF(E$1,IFERROR((dis_NetBen_2-dis_NetBen_Base)/(dis_DirCost_2-dis_DirCost_Base),""),"") ->  | F30: =IF(F$1,IFERROR((dis_NetBen_3-dis_NetBen_Base)/(dis_DirCost_3-dis_DirCost_Base),""),"") ->  | G30: =IF(G$1,IFERROR((dis_NetBen_4-dis_NetBen_Base)/(dis_DirCost_4-dis_DirCost_Base),""),"") ->  | H30: =IF(H$1,IFERROR((dis_NetBen_5-dis_NetBen_Base)/(dis_DirCost_5-dis_DirCost_Base),""),"") -> 
B31: EC: HMEA (Public Income) | D31: =IF(D$1,IFERROR((dis_PublicInc_1-dis_PublicInc_Base)/(dis_DirCost_1-dis_DirCost_Base),""),"") -> 128.9043889 | E31: =IF(E$1,IFERROR((dis_PublicInc_2-dis_PublicInc_Base)/(dis_DirCost_2-dis_DirCost_Base),""),"") ->  | F31: =IF(F$1,IFERROR((dis_PublicInc_3-dis_PublicInc_Base)/(dis_DirCost_3-dis_DirCost_Base),""),"") ->  | G31: =IF(G$1,IFERROR((dis_PublicInc_4-dis_PublicInc_Base)/(dis_DirCost_4-dis_DirCost_Base),""),"") ->  | H31: =IF(H$1,IFERROR((dis_PublicInc_5-dis_PublicInc_Base)/(dis_DirCost_5-dis_DirCost_Base),""),"") -> 
B33: Discounted costs
B35: Direct Cost: Maintenance | C35: £k | D35: 354654.5784 | E35: 105947.7491
B37: HMAT Indirect Costs | C37: £k | D37: 96231289.75 | E37: 90197937.48
B38: Total Carbon costs | C38: £k | D38: 2643615.748 | E38: 2239694.996
B40: Network benefits | C40: £k | D40: 8740295.877 | E40: 8243538.894
B41: Public Income | C41: £k | D41: 24413273.46 | E41: 2000192.935
B42: Economic Impacts | C42: £k | D42: 159727012.9 | E42: 154766589.9
B45: Overall Economic Contribution (EC) | D45: =IF(D$1,IFERROR((undis_A_Base-undis_A_1)/(undis_DirCost_1-undis_DirCost_Base),""),"") -> 87.80180404 | E45: =IF(E$1,IFERROR((undis_A_Base-undis_A_2)/(undis_DirCost_2-undis_DirCost_Base),""),"") ->  | F45: =IF(F$1,IFERROR((undis_A_Base-undis_A_3)/(undis_DirCost_3-undis_DirCost_Base),""),"") ->  | G45: =IF(G$1,IFERROR((undis_A_Base-undis_A_4)/(undis_DirCost_4-undis_DirCost_Base),""),"") ->  | H45: =IF(H$1,IFERROR((undis_A_Base-undis_A_5)/(undis_DirCost_5-undis_DirCost_Base),""),"") -> 
B47: EC: HMAT + HMEA (Economic) | D47: =IF(D$1,IFERROR((undis_B_Base-undis_B_1)/(undis_DirCost_1-undis_DirCost_Base),""),"") -> -4.314032006 | E47: =IF(E$1,IFERROR((undis_B_Base-undis_B_2)/(undis_DirCost_2-undis_DirCost_Base),""),"") ->  | F47: =IF(F$1,IFERROR((undis_B_Base-undis_B_3)/(undis_DirCost_3-undis_DirCost_Base),""),"") ->  | G47: =IF(G$1,IFERROR((undis_B_Base-undis_B_4)/(undis_DirCost_4-undis_DirCost_Base),""),"") ->  | H47: =IF(H$1,IFERROR((undis_B_Base-undis_B_5)/(undis_DirCost_5-undis_DirCost_Base),""),"") -> 
B48: EC: HMEA (Excluding Economic) | D48: =IF(D$1,IFERROR((undis_C_Base-undis_C_1)/(undis_DirCost_1-undis_DirCost_Base),""),"") -> 67.85694341 | E48: =IF(E$1,IFERROR((undis_C_Base-undis_C_2)/(undis_DirCost_2-undis_DirCost_Base),""),"") ->  | F48: =IF(F$1,IFERROR((undis_C_Base-undis_C_3)/(undis_DirCost_3-undis_DirCost_Base),""),"") ->  | G48: =IF(G$1,IFERROR((undis_C_Base-undis_C_4)/(undis_DirCost_4-undis_DirCost_Base),""),"") ->  | H48: =IF(H$1,IFERROR((undis_C_Base-undis_C_5)/(undis_DirCost_5-undis_DirCost_Base),""),"") -> 
B49: EC: HMEA (Excluding HMAT) | D49: =IF(D$1,IFERROR((undis_D_Base-undis_D_1)/(undis_DirCost_1-undis_DirCost_Base),""),"") -> 112.0606967 | E49: =IF(E$1,IFERROR((undis_D_Base-undis_D_2)/(undis_DirCost_2-undis_DirCost_Base),""),"") ->  | F49: =IF(F$1,IFERROR((undis_D_Base-undis_D_3)/(undis_DirCost_3-undis_DirCost_Base),""),"") ->  | G49: =IF(G$1,IFERROR((undis_D_Base-undis_D_4)/(undis_DirCost_4-undis_DirCost_Base),""),"") ->  | H49: =IF(H$1,IFERROR((undis_D_Base-undis_D_5)/(undis_DirCost_5-undis_DirCost_Base),""),"") -> 
B50: EC: HMEA (Net Ben + Public Inc.) | D50: =IF(D$1,IFERROR((undis_E_Base-undis_E_1)/(undis_DirCost_1-undis_DirCost_Base),""),"") -> 92.11583605 | E50: =IF(E$1,IFERROR((undis_E_Base-undis_E_2)/(undis_DirCost_2-undis_DirCost_Base),""),"") ->  | F50: =IF(F$1,IFERROR((undis_E_Base-undis_E_3)/(undis_DirCost_3-undis_DirCost_Base),""),"") ->  | G50: =IF(G$1,IFERROR((undis_E_Base-undis_E_4)/(undis_DirCost_4-undis_DirCost_Base),""),"") ->  | H50: =IF(H$1,IFERROR((undis_E_Base-undis_E_5)/(undis_DirCost_5-undis_DirCost_Base),""),"") -> 
B52: EC: HMEA (Economic) | D52: =IF(D$1,IFERROR((undis_EcoImp_1-undis_EcoImp_Base)/(undis_DirCost_1-undis_DirCost_Base),""),"") -> 19.94486063 | E52: =IF(E$1,IFERROR((undis_EcoImp_2-undis_EcoImp_Base)/(undis_DirCost_2-undis_DirCost_Base),""),"") ->  | F52: =IF(F$1,IFERROR((undis_EcoImp_3-undis_EcoImp_Base)/(undis_DirCost_3-undis_DirCost_Base),""),"") ->  | G52: =IF(G$1,IFERROR((undis_EcoImp_4-undis_EcoImp_Base)/(undis_DirCost_4-undis_DirCost_Base),""),"") ->  | H52: =IF(H$1,IFERROR((undis_EcoImp_5-undis_EcoImp_Base)/(undis_DirCost_5-undis_DirCost_Base),""),"") -> 
B53: EC: HMAT | D53: =IF(D$1,IFERROR((undis_HMAT_BASE-undis_HMAT_1)/(undis_DirCost_1-undis_DirCost_Base),""),"") -> -24.25889264 | E53: =IF(E$1,IFERROR((undis_HMAT_BASE-undis_HMAT_2)/(undis_DirCost_2-undis_DirCost_Base),""),"") ->  | F53: =IF(F$1,IFERROR((undis_HMAT_BASE-undis_HMAT_3)/(undis_DirCost_3-undis_DirCost_Base),""),"") ->  | G53: =IF(G$1,IFERROR((undis_HMAT_BASE-undis_HMAT_4)/(undis_DirCost_4-undis_DirCost_Base),""),"") ->  | H53: =IF(H$1,IFERROR((undis_HMAT_BASE-undis_HMAT_5)/(undis_DirCost_5-undis_DirCost_Base),""),"") -> 
B54: EC: HMEA (Network Benefit) | D54: =IF(D$1,IFERROR((undis_NetBen_1-undis_NetBen_Base)/(undis_DirCost_1-undis_DirCost_Base),""),"") -> 1.99735964 | E54: =IF(E$1,IFERROR((undis_NetBen_2-undis_NetBen_Base)/(undis_DirCost_2-undis_DirCost_Base),""),"") ->  | F54: =IF(F$1,IFERROR((undis_NetBen_3-undis_NetBen_Base)/(undis_DirCost_3-undis_DirCost_Base),""),"") ->  | G54: =IF(G$1,IFERROR((undis_NetBen_4-undis_NetBen_Base)/(undis_DirCost_4-undis_DirCost_Base),""),"") ->  | H54: =IF(H$1,IFERROR((undis_NetBen_5-undis_NetBen_Base)/(undis_DirCost_5-undis_DirCost_Base),""),"") -> 
B55: EC: HMEA (Public Income) | D55: =IF(D$1,IFERROR((undis_PublicInc_1-undis_PublicInc_Base)/(undis_DirCost_1-undis_DirCost_Base),""),"") -> 90.11847641 | E55: =IF(E$1,IFERROR((undis_PublicInc_2-undis_PublicInc_Base)/(undis_DirCost_2-undis_DirCost_Base),""),"") ->  | F55: =IF(F$1,IFERROR((undis_PublicInc_3-undis_PublicInc_Base)/(undis_DirCost_3-undis_DirCost_Base),""),"") ->  | G55: =IF(G$1,IFERROR((undis_PublicInc_4-undis_PublicInc_Base)/(undis_DirCost_4-undis_DirCost_Base),""),"") ->  | H55: =IF(H$1,IFERROR((undis_PublicInc_5-undis_PublicInc_Base)/(undis_DirCost_5-undis_DirCost_Base),""),"") -> 

Sheet Settings (hidden)
A1: Version number | B1: 1.02
A2: Base case | B2: 2 | D2: 1 | E2: 2 | F2: 3 | G2: 4 | H2: 5
A3: Has data | B3: =OFFSET(Summary!B11,0,$B$2)<>"" -> TRUE
A6: Discounted costs
B8: Selected
A9: Expenditure by Treatment | B9: =OFFSET(Summary!C11,0,$B$2) -> 166971.6 | D9: =Summary!D11 -> 540624.7793 | E9: =Summary!E11 -> 166971.6 | F9: =Summary!F11 -> 0 | G9: =Summary!G11 -> 0 | H9: =Summary!H11 -> 0
A11: HMAT analysis total cost | B11: =OFFSET(Summary!C13,0,$B$2) -> 155870546.7 | D11: =Summary!D13 -> 169250126.5 | E11: =Summary!E13 -> 155870546.7 | F11: =Summary!F13 -> 0 | G11: =Summary!G13 -> 0 | H11: =Summary!H13 -> 0
A12: Network benefits | B12: =OFFSET(Summary!C16,0,$B$2) -> 14163699.78 | D12: =Summary!D16 -> 15180401.57 | E12: =Summary!E16 -> 14163699.78 | F12: =Summary!F16 -> 0 | G12: =Summary!G16 -> 0 | H12: =Summary!H16 -> 0
A13: Public Income | B13: =OFFSET(Summary!C17,0,$B$2) -> 2799910.836 | D13: =Summary!D17 -> 50965445.58 | E13: =Summary!E17 -> 2799910.836 | F13: =Summary!F17 -> 0 | G13: =Summary!G17 -> 0 | H13: =Summary!H17 -> 0
A14: Economic Impacts | B14: =OFFSET(Summary!C18,0,$B$2) -> 251987201.3 | D14: =Summary!D18 -> 261742977.1 | E14: =Summary!E18 -> 251987201.3 | F14: =Summary!F18 -> 0 | G14: =Summary!G18 -> 0 | H14: =Summary!H18 -> 0
A16: Calc for BCR A | B16: =B11-B12-B13-B14 -> -113080265.2 | D16: =D11-D12-D13-D14 -> -158638697.8 | E16: =E11-E12-E13-E14 -> -113080265.2 | F16: =F11-F12-F13-F14 -> 0 | G16: =G11-G12-G13-G14 -> 0 | H16: =H11-H12-H13-H14 -> 0
A17: Calc for BCR B | B17: =B11-B14 -> -96116654.57 | D17: =D11-D14 -> -92492850.61 | E17: =E11-E14 -> -96116654.57 | F17: =F11-F14 -> 0 | G17: =G11-G14 -> 0 | H17: =H11-H14 -> 0
A18: Calc for BCR C | B18: =B11-B12-B13 -> 138906936.1 | D18: =D11-D12-D13 -> 103104279.4 | E18: =E11-E12-E13 -> 138906936.1 | F18: =F11-F12-F13 -> 0 | G18: =G11-G12-G13 -> 0 | H18: =H11-H12-H13 -> 0
A19: Calc for BCR D | B19: =-B12-B13-B14 -> -268950811.9 | D19: =-D12-D13-D14 -> -327888824.3 | E19: =-E12-E13-E14 -> -268950811.9 | F19: =-F12-F13-F14 -> 0 | G19: =-G12-G13-G14 -> 0 | H19: =-H12-H13-H14 -> 0
A20: Calc for BCR E | B20: =-B12-B13 -> -16963610.61 | D20: =-D12-D13 -> -66145847.15 | E20: =-E12-E13 -> -16963610.61 | F20: =-F12-F13 -> 0 | G20: =-G12-G13 -> 0 | H20: =-H12-H13 -> 0
A23: Un-discounted costs
B25: Selected
A26: Expenditure by Treatment | B26: =OFFSET(Summary!C35,0,$B$2) -> 105947.7491 | D26: =Summary!D35 -> 354654.5784 | E26: =Summary!E35 -> 105947.7491 | F26: =Summary!F35 -> 0 | G26: =Summary!G35 -> 0 | H26: =Summary!H35 -> 0
A28: HMAT analysis total cost | B28: =OFFSET(Summary!C37,0,$B$2) -> 90197937.48 | D28: =Summary!D37 -> 96231289.75 | E28: =Summary!E37 -> 90197937.48 | F28: =Summary!F37 -> 0 | G28: =Summary!G37 -> 0 | H28: =Summary!H37 -> 0
A29: Network benefits | B29: =OFFSET(Summary!C40,0,$B$2) -> 8243538.894 | D29: =Summary!D40 -> 8740295.877 | E29: =Summary!E40 -> 8243538.894 | F29: =Summary!F40 -> 0 | G29: =Summary!G40 -> 0 | H29: =Summary!H40 -> 0
A30: Public Income | B30: =OFFSET(Summary!C41,0,$B$2) -> 2000192.935 | D30: =Summary!D41 -> 24413273.46 | E30: =Summary!E41 -> 2000192.935 | F30: =Summary!F41 -> 0 | G30: =Summary!G41 -> 0 | H30: =Summary!H41 -> 0
A31: Economic Impacts | B31: =OFFSET(Summary!C42,0,$B$2) -> 154766589.9 | D31: =Summary!D42 -> 159727012.9 | E31: =Summary!E42 -> 154766589.9 | F31: =Summary!F42 -> 0 | G31: =Summary!G42 -> 0 | H31: =Summary!H42 -> 0
A33: Calc for BCR A | B33: =B28-B29-B30-B31 -> -74812384.21 | D33: =D28-D29-D30-D31 -> -96649292.5 | E33: =E28-E29-E30-E31 -> -74812384.21 | F33: =F28-F29-F30-F31 -> 0 | G33: =G28-G29-G30-G31 -> 0 | H33: =H28-H29-H30-H31 -> 0
A34: Calc for BCR B | B34: =B28-B31 -> -64568652.38 | D34: =D28-D31 -> -63495723.16 | E34: =E28-E31 -> -64568652.38 | F34: =F28-F31 -> 0 | G34: =G28-G31 -> 0 | H34: =H28-H31 -> 0
A35: Calc for BCR C | B35: =B28-B29-B30 -> 79954205.65 | D35: =D28-D29-D30 -> 63077720.41 | E35: =E28-E29-E30 -> 79954205.65 | F35: =F28-F29-F30 -> 0 | G35: =G28-G29-G30 -> 0 | H35: =H28-H29-H30 -> 0
A36: Calc for BCR D | B36: =-B29-B30-B31 -> -165010321.7 | D36: =-D29-D30-D31 -> -192880582.2 | E36: =-E29-E30-E31 -> -165010321.7 | F36: =-F29-F30-F31 -> 0 | G36: =-G29-G30-G31 -> 0 | H36: =-H29-H30-H31 -> 0
A37: Calc for BCR E | B37: =-B29-B30 -> -10243731.83 | D37: =-D29-D30 -> -33153569.34 | E37: =-E29-E30 -> -10243731.83 | F37: =-F29-F30 -> 0 | G37: =-G29-G30 -> 0 | H37: =-H29-H30 -> 0
